bitfinex/quotes_BTCUSD_20240821
["timestamp","ask_amount","ask_price","bid_price","bid_amount"]
[1724252800483,0.00336276,59455.0,59450.0,0.1621]
[1724252800675,0.168205,59451.0,59450.0,0.1621]
[1724252800888,0.504616,59451.0,59450.0,0.1621]
[1724252801348,0.007,59454.0,59452.0,0.168202]
[1724252801557,0.168202,59453.0,59450.0,0.1621]
[1724252801762,0.00418476,59456.0,59450.0,0.1621]
[1724252801763,0.175196,59455.0,59450.0,0.1621]
[1724252801971,0.168204,59452.0,59450.0,0.1621]
[1724252802177,0.336396,59454.0,59450.0,0.1621]
[1724252802178,0.17656776,59451.0,59450.0,0.1621]
[1724252802393,0.17756776,59451.0,59450.0,0.1621]
[1724252802637,0.51397876,59451.0,59450.0,0.1621]
[1724252802895,0.51397876,59451.0,59442.0,0.1674]
[1724252802896,0.16823,59443.0,59442.0,0.1674]
[1724252803100,0.50641398,59451.0,59441.0,0.1291]
[1724252803101,0.006,59451.0,59446.0,0.168218]
[1724252803309,0.50378574,59450.0,59445.0,0.1674]
[1724252803512,0.168215,59448.0,59445.0,0.1674]
[1724252803724,0.006,59451.0,59445.0,0.1674]
[1724252803725,0.168219,59446.0,59445.0,0.1674]
[1724252803960,0.504684,59443.0,59442.0,0.1744]
[1724252804189,0.66868698,59443.0,59442.0,0.1744]
[1724252804407,0.33223098,59443.0,59442.0,0.1744]
[1724252804819,0.66868698,59443.0,59442.0,0.1744]
[1724252805497,0.33223098,59443.0,59442.0,0.1744]
[1724252805701,0.13600782,59449.0,59443.0,0.336456]
[1724252805927,0.13600782,59449.0,59442.0,0.34363]
[1724252805928,0.002,59443.0,59442.0,0.34363]
[1724252806769,0.002,59443.0,59442.0,0.343631]
[1724252806978,0.002,59443.0,59442.0,0.342631]
[1724252807852,0.0263831,59449.0,59442.0,0.1744]
[1724252808075,0.0263831,59449.0,59448.0,0.676442]
[1724252808291,0.000822,59456.0,59449.0,0.1718]
[1724252808504,0.000822,59456.0,59450.0,0.336414]
[1724252808716,0.00418476,59456.0,59451.0,0.1718]
[1724252808922,0.00418476,59456.0,59450.0,0.336414]
[1724252808923,0.00418476,59456.0,59455.0,0.1718]
[1724252809140,0.000822,59456.0,59455.0,0.1718]
[1724252809776,0.000822,59456.0,59455.0,0.18613887]
[1724252809777,0.00361955,59456.0,59455.0,0.18613887]
[1724252810691,1.10857953,59456.0,59455.0,0.01433887]
[1724252811112,0.168198,59454.0,59448.0,0.328814]
[1724252811318,0.00336276,59453.0,59448.0,0.1606]
[1724252811521,0.00336276,59453.0,59448.0,0.328814]
[1724252811522,0.17156276,59453.0,59448.0,0.328814]
[1724252812291,0.003,59454.0,59451.0,0.168204]
[1724252812568,0.003,59454.0,59444.0,0.336448]
[1724252812569,0.336411,59451.0,59437.0,0.1629]
[1724252812789,0.336411,59451.0,59433.0,0.16102264]
[1724252812790,0.168217,59447.0,59440.0,0.168235]
[1724252813027,0.168217,59447.0,59441.0,0.176]
[1724252813028,0.168231,59442.0,59441.0,0.176]
[1724252813299,0.504693,59442.0,59441.0,0.176]
[1724252813570,0.168231,59442.0,59441.0,0.176]
[1724252813820,0.168231,59442.0,59433.0,0.1746]
[1724252813821,0.504744,59436.0,59433.0,0.1746]
[1724252814103,1.00524298,59436.0,59433.0,0.1746]
[1724252814607,1.10524298,59436.0,59433.0,0.1746]
[1724252815392,1.12224298,59436.0,59433.0,0.1746]
[1724252815704,1.11324298,59436.0,59433.0,0.1746]
[1724252815912,1.11324298,59436.0,59420.0,0.0009053]
[1724252815913,2.90559896,59436.0,59420.0,0.0009053]
[1724252816094,2.93014873,59436.0,59420.0,0.0009053]
[1724252816511,1.888933,59421.0,59420.0,0.0009053]
[1724252816744,2.21691476,59421.0,59420.0,0.0009053]
[1724252816984,2.00863598,59421.0,59420.0,0.0009053]
[1724252817200,1.46503598,59421.0,59420.0,0.0009053]
[1724252817428,0.0263978,59422.0,59420.0,0.1738053]
[1724252817640,0.33329298,59421.0,59420.0,0.0009053]
[1724252817843,1.00881774,59421.0,59420.0,0.0009053]
[1724252818052,1.10881774,59421.0,59420.0,0.0009053]
[1724252818279,1.5838661,59421.0,59420.0,0.0009053]
[1724252818490,1.5698661,59421.0,59420.0,0.0009053]
[1724252818703,1.5928661,59421.0,59420.0,0.0009053]
[1724252818920,1.11881774,59421.0,59420.0,0.0009053]
[1724252819130,0.614871,59421.0,59420.0,0.0009053]
[1724252819347,0.627871,59421.0,59420.0,0.1619053]
[1724252819552,1.44085498,59421.0,59420.0,0.0009053]
[1724252819767,1.50622766,59421.0,59420.0,0.0009053]
[1724252819981,1.84380866,59421.0,59420.0,0.0009053]
[1724252820189,1.83380866,59421.0,59420.0,0.0009053]
[1724252820396,1.83280866,59421.0,59420.0,0.0009053]
[1724252820603,1.59723598,59421.0,59420.0,0.0009053]
[1724252820859,1.61023598,59421.0,59420.0,0.0009053]
[1724252821044,1.59823598,59421.0,59420.0,0.0009053]
[1724252821251,1.61123598,59421.0,59420.0,0.0009053]
[1724252821462,1.62323598,59421.0,59420.0,0.0009053]
[1724252821678,1.60023598,59421.0,59420.0,0.0009053]
[1724252821887,1.25065498,59421.0,59420.0,0.0009053]
[1724252822343,1.26465498,59421.0,59420.0,0.0009053]
[1724252822754,1.27999224,59421.0,59420.0,0.0009053]
[1724252822984,0.45929298,59421.0,59420.0,0.0009053]
[1724252823191,0.45929298,59421.0,59420.0,0.6856853]
[1724252823192,0.027,59421.0,59420.0,0.6856853]
[1724252823403,0.014,59421.0,59420.0,0.1808053]
[1724252823634,0.52223376,59421.0,59420.0,0.19247634]
[1724252823894,1.07167836,59421.0,59420.0,0.01257634]
[1724252824159,1.08267836,59421.0,59420.0,0.01257634]
[1724252824409,1.08267836,59421.0,59420.0,0.0009053]
[1724252824410,1.06867836,59421.0,59420.0,0.0009053]
[1724252824646,1.10545498,59421.0,59420.0,0.0009053]
[1724252824859,0.78287398,59421.0,59420.0,0.1746053]
[1724252825067,0.86016138,59421.0,59420.0,0.0009053]
[1724252825278,1.52032338,59421.0,59420.0,0.0009053]
[1724252825486,1.52732338,59421.0,59420.0,0.0009053]
[1724252825702,1.85272338,59421.0,59420.0,0.0009053]
[1724252825937,1.84872338,59421.0,59420.0,0.0009053]
[1724252826118,1.86472338,59421.0,59420.0,0.0009053]
[1724252826741,1.60673598,59421.0,59420.0,0.0009053]
[1724252827627,1.10545498,59421.0,59420.0,0.0009053]
[1724252828039,1.11345498,59421.0,59420.0,0.0009053]
[1724252828477,1.62863598,59421.0,59420.0,0.0009053]
[1724252828893,1.64263598,59421.0,59420.0,0.0009053]
[1724252829320,1.46903598,59421.0,59420.0,0.0009053]
[1724252829529,0.77287398,59421.0,59420.0,0.0009053]
[1724252829748,0.608871,59421.0,59420.0,0.0009053]
[1724252829951,0.604871,59421.0,59420.0,0.0009053]
[1724252830153,0.604871,59421.0,59420.0,0.01063117]
[1724252830154,0.26829,59421.0,59420.0,0.01063117]
[1724252830359,0.16829,59421.0,59420.0,0.01063117]
[1724252830784,1.03381774,59421.0,59420.0,0.01063117]
[1724252830979,1.03045498,59421.0,59420.0,0.01063117]
[1724252831184,1.03045498,59421.0,59420.0,0.0009053]
[1724252831390,1.01645498,59421.0,59420.0,0.0009053]
[1724252831595,0.623871,59421.0,59420.0,0.0009053]
[1724252832230,0.85143799,59421.0,59420.0,0.0009053]
[1724252832446,1.11645498,59421.0,59420.0,0.0009053]
[1724252832654,1.12145498,59421.0,59420.0,0.0009053]
[1724252833075,0.27929,59421.0,59420.0,0.0009053]
[1724252833282,0.29029,59421.0,59420.0,0.0009053]
[1724252833527,0.626871,59421.0,59420.0,0.0009053]
[1724252833746,0.011,59421.0,59420.0,0.0009053]
[1724252833958,0.005,59421.0,59420.0,0.6811853]
[1724252834169,0.005,59421.0,59420.0,0.83351117]
[1724252834381,0.013,59421.0,59420.0,1.17009817]
[1724252834795,0.005,59421.0,59420.0,1.17009817]
[1724252835637,0.005,59421.0,59420.0,0.83351117]
[1724252835854,0.00336276,59427.0,59423.0,0.336569]
[1724252836074,0.00336276,59427.0,59423.0,0.168284]
[1724252836284,0.1,59428.0,59424.0,0.00970681]
[1724252836488,0.47148746,59432.0,59429.0,0.168266]
[1724252836698,0.47148746,59432.0,59426.0,0.336552]
[1724252836699,0.1,59431.0,59428.0,0.16827]
[1724252836899,0.1,59431.0,59430.0,0.00967824]
[1724252837102,0.268262,59431.0,59430.0,0.00967824]
[1724252837330,0.1,59431.0,59430.0,0.35804324]
[1724252837534,0.02639195,59433.0,59432.0,0.684878]
[1724252837757,0.02639195,59433.0,59432.0,1.52191898]
[1724252837967,0.000822,59435.0,59434.0,0.842267]
[1724252838178,0.000822,59435.0,59434.0,1.66427698]
[1724252838386,0.000822,59435.0,59434.0,1.67405518]
[1724252838813,0.49787238,59452.0,59434.0,1.67405518]
[1724252838814,0.02638492,59452.0,59442.0,0.841155]
[1724252839026,0.02638492,59452.0,59442.0,1.31595798]
[1724252839230,0.00061955,59456.0,59442.0,1.6611601]
[1724252839432,0.00398231,59456.0,59442.0,1.6621601]
[1724252839645,0.00398231,59456.0,59442.0,1.6611601]
[1724252839910,0.00061955,59456.0,59442.0,1.6621601]
[1724252840133,0.00061955,59456.0,59442.0,1.6611601]
[1724252840134,0.00398231,59456.0,59442.0,1.6611601]
[1724252840549,0.00398231,59456.0,59442.0,1.6621601]
[1724252840762,0.00398231,59456.0,59442.0,1.6611601]
[1724252841207,0.001823,59443.0,59442.0,1.6611601]
[1724252841420,0.001823,59443.0,59442.0,1.66603016]
[1724252841628,0.002823,59443.0,59442.0,1.67203016]
[1724252844978,0.002823,59443.0,59442.0,0.83510318]
[1724252845176,0.171051,59443.0,59442.0,0.02061018]
[1724252845790,0.002823,59443.0,59442.0,0.02061018]
[1724252845992,0.17441376,59443.0,59442.0,0.02061018]
[1724252846329,0.00618576,59443.0,59442.0,0.02061018]
[1724252846543,0.00618576,59443.0,59442.0,0.18884118]
[1724252846544,0.002823,59443.0,59442.0,0.18884118]
[1724252846751,0.002823,59443.0,59442.0,0.02061018]
[1724252847151,0.000823,59443.0,59442.0,0.01461018]
[1724252847726,0.000823,59443.0,59442.0,0.18284118]
[1724252847951,0.000823,59443.0,59442.0,0.35107218]
[1724252848125,0.000823,59443.0,59442.0,0.51930318]
[1724252849153,0.001823,59443.0,59442.0,0.51930318]
[1724252849355,0.001823,59443.0,59442.0,1.16796518]
[1724252849761,0.001823,59443.0,59442.0,1.03016518]
[1724252849961,0.001823,59443.0,59442.0,0.69370318]
[1724252850171,0.001823,59443.0,59442.0,0.69670318]
[1724252850315,0.001823,59443.0,59442.0,0.01761018]
[1724252850316,0.139423,59443.0,59442.0,0.01761018]
[1724252850519,0.139423,59443.0,59431.0,0.1739042]
[1724252850520,0.138423,59443.0,59431.0,0.1739042]
[1724252850721,0.00336276,59442.0,59431.0,0.5104272]
[1724252850919,0.00336276,59442.0,59433.0,0.168255]
[1724252851266,0.00336276,59442.0,59432.0,0.34826027]
[1724252851267,0.336468,59441.0,59432.0,0.34826027]
[1724252851489,0.336468,59441.0,59431.0,0.3374272]
[1724252851490,0.168244,59438.0,59434.0,0.01173384]
[1724252851775,0.00336276,59437.0,59435.0,0.01172813]
[1724252852181,0.17160876,59437.0,59432.0,0.168258]
[1724252852385,0.17160876,59437.0,59431.0,0.3374272]
[1724252852386,0.17160876,59437.0,59433.0,0.168256]
[1724252852639,0.17160876,59437.0,59433.0,0.18293045]
[1724252853044,0.16736574,59437.0,59433.0,0.01467445]
[1724252853253,0.50476,59434.0,59433.0,0.01467445]
[1724252853456,0.504778,59432.0,59431.0,0.0009042]
[1724252853876,0.841297,59432.0,59431.0,0.0009042]
[1724252854100,0.336504,59435.0,59431.0,0.0009042]
[1724252854302,0.16400298,59435.0,59431.0,0.0009042]
[1724252854505,0.168256,59433.0,59432.0,0.01174527]
[1724252854711,0.504769,59433.0,59432.0,0.01174527]
[1724252854915,0.507778,59432.0,59431.0,0.0009042]
[1724252855763,0.507778,59432.0,59431.0,0.01265518]
[1724252855972,0.507778,59432.0,59431.0,0.0009042]
[1724252856191,0.003,59432.0,59431.0,0.35921718]
[1724252856439,0.003,59432.0,59431.0,1.0205142]
[1724252856649,0.003,59432.0,59431.0,1.37172693]
[1724252857283,0.003,59432.0,59431.0,1.67872991]
[1724252857485,0.003,59432.0,59431.0,1.17820293]
[1724252858329,0.004,59432.0,59431.0,1.17820293]
[1724252858541,0.004,59432.0,59431.0,0.69867893]
[1724252858988,0.001,59432.0,59431.0,0.69867893]
[1724252860023,0.001,59432.0,59431.0,1.03520293]
[1724252860672,0.006,59433.0,59432.0,0.504778]
[1724252860919,0.006,59433.0,59431.0,0.53041693]
[1724252860920,0.000822,59437.0,59433.0,0.336512]
[1724252861355,0.00077994,59437.0,59435.0,0.168249]
[1724252861795,0.00077994,59437.0,59433.0,0.336512]
[1724252861796,0.00077994,59437.0,59436.0,0.51939702]
[1724252862177,0.00377994,59437.0,59436.0,0.51939702]
[1724252862379,0.00677994,59437.0,59436.0,0.51939702]
[1724252863385,0.00677994,59437.0,59436.0,0.53786023]
[1724252863765,0.00677994,59437.0,59436.0,1.38775223]
[1724252863978,0.00677994,59437.0,59436.0,1.36928902]
[1724252864187,0.00677994,59437.0,59436.0,1.38775143]
[1724252864361,0.00777994,59437.0,59436.0,1.51488902]
[1724252864560,0.00177994,59437.0,59436.0,1.51488902]
[1724252864965,0.00477994,59437.0,59436.0,1.51488902]
[1724252865385,0.00177994,59437.0,59436.0,1.51488902]
[1724252865603,0.00177994,59437.0,59436.0,1.51588902]
[1724252865808,0.00177994,59437.0,59436.0,1.37028902]
[1724252868720,0.00177994,59437.0,59436.0,1.534292]
[1724252868921,0.00177994,59437.0,59436.0,1.870788]
[1724252869143,0.00177994,59437.0,59436.0,2.03336036]
[1724252869379,0.00177994,59437.0,59436.0,2.05441518]
[1724252869597,0.000823,59443.0,59442.0,1.345817]
[1724252869798,0.000823,59443.0,59442.0,1.50981998]
[1724252870008,0.000823,59443.0,59442.0,1.52182598]
[1724252870644,0.000823,59443.0,59442.0,0.180237]
[1724252871061,0.000823,59443.0,59442.0,0.012006]
[1724252871259,0.00418576,59443.0,59442.0,0.012006]
[1724252871570,0.00518576,59443.0,59442.0,0.004]
[1724252871832,0.00518576,59443.0,59442.0,0.016006]
[1724252872259,0.00518576,59443.0,59442.0,0.021006]
[1724252872470,0.17441376,59443.0,59442.0,0.026006]
[1724252872974,0.00618576,59443.0,59442.0,0.026006]
[1724252873735,0.69296976,59443.0,59442.0,0.026006]
[1724252873988,1.02942576,59443.0,59442.0,0.026006]
[1724252874242,1.36588176,59443.0,59442.0,0.014]
[1724252874471,0.168245,59437.0,59436.0,0.0009042]
[1724252874709,0.50809776,59437.0,59436.0,0.01294448]
[1724252874913,1.66368074,59437.0,59436.0,0.0009042]
[1724252875389,1.76468074,59437.0,59436.0,0.0009042]
[1724252875603,1.79107109,59437.0,59436.0,0.0019042]
[1724252876035,1.95504987,59437.0,59436.0,0.0019042]
[1724252876249,1.98754414,59437.0,59436.0,0.0019042]
[1724252876668,2.32403414,59437.0,59436.0,0.0019042]
[1724252876871,2.32603414,59437.0,59436.0,0.0009042]
[1724252877095,2.66252414,59437.0,59436.0,0.0009042]
[1724252877312,2.66252414,59437.0,59431.0,0.0009042]
[1724252877313,1.887916,59432.0,59431.0,0.0009042]
[1724252877519,2.40921898,59432.0,59431.0,0.0009042]
[1724252877727,2.74573798,59432.0,59431.0,0.0009042]
[1724252877946,2.76873798,59432.0,59431.0,0.0009042]
[1724252878195,2.36673798,59432.0,59431.0,0.0009042]
[1724252878645,2.02921898,59432.0,59431.0,0.0009042]
[1724252878868,0.268259,59432.0,59431.0,0.0009042]
[1724252879063,0.53614076,59432.0,59431.0,0.0009042]
[1724252879269,0.869297,59432.0,59431.0,0.0009042]
[1724252879949,0.196259,59432.0,59431.0,0.0009042]
[1724252880155,0.028,59432.0,59431.0,0.0009042]
[1724252880369,0.014,59432.0,59431.0,0.65285905]
[1724252880579,0.014,59432.0,59431.0,0.0009042]
[1724252880791,0.028,59432.0,59431.0,0.68745905]
[1724252881015,0.014,59432.0,59431.0,1.02398305]
[1724252881213,0.168238,59440.0,59431.0,1.02398305]
[1724252881214,0.168241,59439.0,59435.0,0.16825]
[1724252881422,0.673743,59443.0,59437.0,0.168244]
[1724252881423,0.168235,59441.0,59437.0,0.168244]
[1724252881623,0.00336276,59441.0,59436.0,0.17384028]
[1724252881825,0.00336276,59441.0,59438.0,0.01202885]
[1724252882032,0.00336276,59441.0,59432.0,0.336514]
[1724252882033,0.17159776,59441.0,59437.0,0.01203457]
[1724252882239,0.17159776,59441.0,59439.0,0.01202314]
[1724252882240,0.00336276,59441.0,59439.0,0.01202314]
[1724252882453,0.00336276,59441.0,59436.0,0.168247]
[1724252882454,0.00336276,59441.0,59438.0,0.01202885]
[1724252882652,0.00336276,59441.0,59432.0,0.500114]
[1724252882653,0.000823,59443.0,59440.0,0.01201743]
[1724252882855,0.000823,59443.0,59431.0,0.0009042]
[1724252882856,0.000823,59443.0,59442.0,0.645893]
[1724252883065,0.000823,59443.0,59442.0,1.484317]
[1724252883302,0.000823,59443.0,59442.0,1.52479382]
[1724252884355,0.000823,59443.0,59442.0,1.496323]
[1724252884613,0.000823,59443.0,59442.0,1.52479247]
[1724252884817,0.002823,59443.0,59442.0,1.498323]
[1724252885445,0.002823,59443.0,59442.0,1.52679308]
[1724252885664,1.30446598,59443.0,59442.0,0.014006]
[1724252885907,1.6663056,59443.0,59442.0,0.002]
[1724252886156,1.6663056,59443.0,59436.0,0.0009042]
[1724252886157,0.25590662,59443.0,59436.0,0.0009042]
[1724252886380,0.1,59442.0,59438.0,0.1685]
[1724252886602,0.02720662,59443.0,59438.0,0.1685]
[1724252886809,0.02720662,59443.0,59439.0,0.01814368]
[1724252887023,0.00336276,59442.0,59439.0,0.01814368]
[1724252888315,0.168236,59441.0,59438.0,0.1685]
[1724252888512,0.168236,59441.0,59439.0,0.01814368]
[1724252888513,0.00336276,59440.0,59439.0,0.01814368]
[1724252888960,0.000823,59443.0,59439.0,0.01814368]
[1724252889174,1.339555,59440.0,59439.0,0.01814368]
[1724252889396,0.504735,59437.0,59436.0,0.0009042]
[1724252889619,1.177715,59437.0,59436.0,0.0009042]
[1724252889840,0.841225,59437.0,59436.0,0.0009042]
[1724252890687,0.86761336,59437.0,59436.0,0.0009042]
[1724252890895,1.36810634,59437.0,59436.0,0.0009042]
[1724252891743,0.86761336,59437.0,59436.0,0.0009042]
[1724252891935,0.87061336,59437.0,59436.0,0.0009042]
[1724252892373,1.03461634,59437.0,59436.0,0.0009042]
[1724252892611,1.37110634,59437.0,59436.0,0.0009042]
[1724252893436,1.03441384,59437.0,59436.0,0.0009042]
[1724252893680,0.02938836,59437.0,59436.0,0.5056482]
[1724252893890,0.02938836,59437.0,59436.0,0.69452044]
[1724252894103,0.02938836,59437.0,59436.0,1.03101644]
[1724252894561,0.000823,59443.0,59442.0,0.168231]
[1724252894770,0.000823,59443.0,59442.0,0.340731]
[1724252894969,0.000823,59443.0,59442.0,1.03177011]
[1724252895770,0.004823,59443.0,59442.0,0.69530811]
[1724252896176,0.000823,59443.0,59442.0,0.69530811]
[1724252896363,0.001823,59443.0,59442.0,0.69830811]
[1724252896766,0.001823,59443.0,59442.0,0.19361511]
[1724252896966,0.170051,59443.0,59442.0,0.02111511]
[1724252897603,0.84632576,59443.0,59442.0,0.02111511]
[1724252897821,0.84632576,59443.0,59442.0,0.003]
[1724252897972,0.84632576,59443.0,59436.0,0.0009042]
[1724252897973,0.504735,59437.0,59436.0,0.0009042]
[1724252898173,1.17112798,59437.0,59436.0,0.0009042]
[1724252898378,1.50761798,59437.0,59436.0,0.0009042]
[1724252898586,1.53400596,59437.0,59436.0,0.0009042]
[1724252899207,1.53600596,59437.0,59436.0,0.0009042]
[1724252900713,1.53700596,59437.0,59436.0,0.0009042]
[1724252900929,2.26619656,59437.0,59436.0,0.0009042]
[1724252901124,2.27119656,59437.0,59436.0,0.0009042]
[1724252901331,2.64007322,59437.0,59436.0,0.0009042]
[1724252901755,2.30058322,59437.0,59436.0,0.0009042]
[1724252901956,2.14288262,59437.0,59436.0,0.0009042]
[1724252902211,2.15888262,59437.0,59436.0,0.0009042]
[1724252902397,2.17288262,59437.0,59436.0,0.0009042]
[1724252902554,2.15688262,59437.0,59436.0,0.0009042]
[1724252902747,2.14188262,59437.0,59436.0,0.0009042]
[1724252902951,1.63049262,59437.0,59436.0,0.0009042]
[1724252903153,1.12999964,59437.0,59436.0,0.0009042]
[1724252903359,1.12061298,59437.0,59436.0,0.0009042]
[1724252903571,0.30863298,59437.0,59436.0,0.0009042]
[1724252903811,0.04038798,59437.0,59436.0,0.1766042]
[1724252904228,0.02638798,59437.0,59436.0,0.36302444]
[1724252904625,0.02638798,59437.0,59436.0,1.03601644]
[1724252904626,0.05438798,59437.0,59436.0,1.03601644]
[1724252904830,0.04038798,59437.0,59436.0,1.03601644]
[1724252905039,0.02638798,59437.0,59436.0,0.69952044]
[1724252905238,0.02638798,59437.0,59436.0,0.70252044]
[1724252905487,0.02738798,59437.0,59436.0,0.70252044]
[1724252905892,0.02638798,59437.0,59436.0,0.70252044]
[1724252906157,0.02638798,59437.0,59436.0,1.33831942]
[1724252906286,0.000823,59443.0,59442.0,0.673993]
[1724252906491,0.000823,59443.0,59442.0,1.010455]
[1724252906692,0.000823,59443.0,59442.0,1.02857011]
[1724252908142,0.000823,59443.0,59442.0,0.69210811]
[1724252908383,0.169051,59443.0,59442.0,0.18741511]
[1724252908602,0.505507,59443.0,59442.0,0.02111511]
[1724252908813,0.506507,59443.0,59442.0,0.02011511]
[1724252908996,0.506507,59443.0,59442.0,0.02311511]
[1724252908997,0.170051,59443.0,59442.0,0.02311511]
[1724252909230,0.171051,59443.0,59442.0,0.005]
[1724252909427,0.168232,59442.0,59438.0,0.168241]
[1724252909631,0.17159476,59442.0,59438.0,0.168241]
[1724252910476,0.001823,59443.0,59437.0,0.50939]
[1724252910695,0.170052,59443.0,59439.0,0.168238]
[1724252911072,0.170052,59443.0,59439.0,0.168237]
[1724252911073,0.001823,59443.0,59439.0,0.168237]
[1724252911273,0.000823,59443.0,59442.0,0.330631]
[1724252911533,0.000823,59443.0,59442.0,1.003555]
[1724252911723,0.001823,59443.0,59442.0,1.008555]
[1724252911926,0.000823,59443.0,59442.0,1.006555]
[1724252912234,0.001823,59443.0,59442.0,1.006555]
[1724252912453,0.642807,59443.0,59442.0,0.003]
[1724252912639,0.170051,59443.0,59442.0,0.003]
[1724252912837,0.170051,59443.0,59439.0,0.005]
[1724252912838,0.168236,59440.0,59439.0,0.005]
[1724252913059,0.168236,59440.0,59436.0,0.0009042]
[1724252913060,0.000823,59443.0,59436.0,0.0009042]
[1724252913198,0.168241,59439.0,59436.0,0.0009042]
[1724252913820,0.168242,59438.0,59436.0,0.0009042]
[1724252914021,0.336472,59441.0,59436.0,0.0009042]
[1724252914224,0.336472,59441.0,59436.0,0.1691512]
[1724252914427,0.001823,59443.0,59436.0,0.0009042]
[1724252914626,0.002823,59443.0,59442.0,0.680493]
[1724252914854,0.000823,59443.0,59442.0,0.675493]
[1724252915051,0.000823,59443.0,59442.0,0.69360811]
[1724252915612,0.000823,59443.0,59442.0,0.35714611]
[1724252915815,0.001823,59443.0,59442.0,0.36214611]
[1724252916635,0.001823,59443.0,59442.0,0.19391511]
[1724252916839,0.001823,59443.0,59442.0,0.36214611]
[1724252917657,0.001823,59443.0,59442.0,0.36514611]
[1724252918064,0.001823,59443.0,59442.0,0.70160811]
[1724252918910,0.001823,59443.0,59442.0,0.36514611]
[1724252919352,0.001823,59443.0,59442.0,0.19434611]
[1724252919547,0.001823,59443.0,59442.0,0.53080811]
[1724252919951,0.001823,59443.0,59442.0,0.19434611]
[1724252920374,0.001823,59443.0,59442.0,0.53080811]
[1724252921423,0.001823,59443.0,59442.0,0.19434611]
[1724252921631,0.001823,59443.0,59442.0,0.53080811]
[1724252922249,0.506507,59443.0,59442.0,0.02611511]
[1724252922481,0.842963,59443.0,59442.0,0.02611511]
[1724252922891,0.506507,59443.0,59442.0,0.02611511]
[1724252923094,0.170051,59443.0,59442.0,0.02611511]
[1724252923716,0.506507,59443.0,59442.0,0.02611511]
[1724252924338,0.001823,59443.0,59442.0,0.02611511]
[1724252924708,0.170051,59443.0,59442.0,0.02611511]
[1724252924942,0.17341376,59443.0,59442.0,0.02611511]
[1724252925259,0.506507,59443.0,59442.0,0.02611511]
[1724252925454,0.170051,59443.0,59442.0,0.02611511]
[1724252926902,0.001823,59443.0,59442.0,0.02611511]
[1724252927104,0.001823,59443.0,59442.0,0.69030811]
[1724252927726,0.001823,59443.0,59442.0,0.35384611]
[1724252929168,0.001823,59443.0,59442.0,0.02611511]
[1724252930213,0.001823,59443.0,59442.0,0.19434611]
[1724252930418,0.001823,59443.0,59442.0,0.02611511]
[1724252931053,1.16952769,59443.0,59442.0,0.02611511]
[1724252931272,1.63452198,59443.0,59442.0,0.02611511]
[1724252931469,1.63452198,59443.0,59442.0,0.008]
[1724252931470,2.1073585,59443.0,59442.0,0.008]
[1724252931681,2.13369389,59443.0,59442.0,0.008]
[1724252932106,2.20750557,59443.0,59442.0,0.003]
[1724252932317,2.37148632,59443.0,59442.0,0.003]
[1724252932527,2.37548632,59443.0,59442.0,0.003]
[1724252932738,2.47647503,59443.0,59442.0,0.003]
[1724252932941,1.177697,59438.0,59437.0,0.0009042]
[1724252933151,0.841212,59438.0,59437.0,0.0009042]
[1724252933366,0.941212,59438.0,59437.0,0.0009042]
[1724252933791,0.63111509,59438.0,59437.0,0.0009042]
[1724252934420,0.04038809,59438.0,59437.0,0.1648042]
[1724252934830,0.20863009,59438.0,59437.0,0.18296692]
[1724252935037,0.54511509,59438.0,59437.0,0.18296692]
[1724252935235,0.54511509,59438.0,59437.0,0.02006692]
[1724252935349,0.88960009,59438.0,59437.0,0.02006692]
[1724252935751,0.88160009,59438.0,59437.0,0.02006692]
[1724252935958,0.88160009,59438.0,59437.0,0.01906692]
[1724252935959,0.86760009,59438.0,59437.0,0.01906692]
[1724252936162,0.86760009,59438.0,59437.0,0.0009042]
[1724252936380,1.37408807,59438.0,59437.0,0.0019042]
[1724252936794,1.37408807,59438.0,59437.0,0.0009042]
[1724252936795,1.36808807,59438.0,59437.0,0.0009042]
[1724252937000,0.87360009,59438.0,59437.0,0.0019042]
[1724252937614,1.36808807,59438.0,59437.0,0.0009042]
[1724252938028,1.37408807,59438.0,59437.0,0.0019042]
[1724252938251,1.37608807,59438.0,59437.0,0.0019042]
[1724252940206,1.37908807,59438.0,59437.0,0.0019042]
[1724252940427,1.37608807,59438.0,59437.0,0.0019042]
[1724252941289,1.54898807,59438.0,59437.0,0.0019042]
[1724252941700,1.55198807,59438.0,59437.0,0.0019042]
[1724252941903,1.54898807,59438.0,59437.0,0.0019042]
[1724252942103,0.53911509,59438.0,59437.0,0.0019042]
[1724252942787,0.53911509,59438.0,59437.0,0.1713042]
[1724252943022,0.53911509,59438.0,59437.0,0.18946692]
[1724252943239,0.20263009,59438.0,59437.0,0.18946692]
[1724252943464,0.03438809,59438.0,59437.0,0.18946692]
[1724252943666,0.03438809,59438.0,59437.0,1.1946949]
[1724252943892,0.008,59438.0,59437.0,1.54964766]
[1724252944115,0.008,59438.0,59437.0,1.5311849]
[1724252944302,0.008,59438.0,59437.0,1.54964692]
[1724252944508,0.002,59438.0,59437.0,0.20692894]
[1724252944733,0.006,59438.0,59437.0,0.37617294]
[1724252944938,0.006,59438.0,59437.0,0.38117294]
[1724252945199,0.007,59438.0,59437.0,1.03569092]
[1724252945398,0.001822,59438.0,59437.0,0.71666378]
[1724252945564,0.001822,59438.0,59437.0,0.38017378]
[1724252945756,0.506549,59438.0,59437.0,0.21192978]
[1724252945957,0.505549,59438.0,59437.0,0.01906692]
[1724252946775,0.53293547,59438.0,59437.0,0.02406692]
[1724252947169,0.02820847,59438.0,59437.0,0.02406692]
[1724252947373,0.02720847,59438.0,59437.0,0.81760192]
[1724252947551,0.03320847,59438.0,59437.0,1.15509192]
[1724252947773,0.006822,59438.0,59437.0,1.6555849]
[1724252948243,0.001822,59438.0,59437.0,1.6585849]
[1724252948458,0.001822,59438.0,59437.0,1.6545849]
[1724252948459,0.000822,59438.0,59437.0,1.6545849]
[1724252948683,0.001822,59438.0,59437.0,1.6595849]
[1724252948886,0.002822,59438.0,59437.0,1.16409192]
[1724252954724,0.002822,59438.0,59437.0,1.3280949]
[1724252954955,0.002822,59438.0,59437.0,1.6645849]
[1724252956045,0.002822,59438.0,59437.0,1.3280949]
[1724252956253,0.002822,59438.0,59437.0,0.69480192]
[1724252956457,0.002822,59438.0,59437.0,0.02906692]
[1724252956663,0.002822,59438.0,59437.0,0.19731192]
[1724252957538,0.002822,59438.0,59437.0,0.02906692]
[1724252957539,0.171064,59438.0,59437.0,0.02906692]